[Event "Early-Titled-Tuesday-Blitz-April-16-2024"]
[Site "Chess.com"]
[Date "2024.04.16"]
[Round "2"]
[White "DarZay"]
[Black "marcodobrikov"]
[Result "0-1"]
[WhiteElo "2317"]
[BlackElo "2534"]
[TimeControl "180+1"]
[EndTime "8:19:41 PDT"]
[Termination "marcodobrikov won by resignation"]

1. e4 {[%clk 0:02:56.1]} 1... e5 {[%clk 0:02:57]} 2. Nf3 {[%clk 0:02:55.5]} 2...
d6 {[%clk 0:02:55.6]} 3. Bc4 {[%clk 0:02:55.5]} 3... Be7 {[%clk 0:02:55.5]} 4.
d4 {[%clk 0:02:54.9]} 4... Nd7 {[%clk 0:02:56.2]} 5. dxe5 {[%clk 0:02:54.1]}
5... dxe5 {[%clk 0:02:56.5]} 6. O-O {[%clk 0:02:46.9]} 6... Ngf6 {[%clk
0:02:56.7]} 7. Nc3 {[%clk 0:02:44]} 7... c6 {[%clk 0:02:57]} 8. Ng5 {[%clk
0:02:39.4]} 8... O-O {[%clk 0:02:57]} 9. f4 {[%clk 0:02:39.7]} 9... exf4 {[%clk
0:02:52.6]} 10. Bxf4 {[%clk 0:02:33.7]} 10... Qb6+ {[%clk 0:02:52.9]} 11. Kh1
{[%clk 0:02:32.1]} 11... Qxb2 {[%clk 0:02:53.2]} 12. Qf3 {[%clk 0:02:23.1]}
12... b5 {[%clk 0:02:44.6]} 13. Bxf7+ {[%clk 0:02:12.9]} 13... Kh8 {[%clk
0:02:26.1]} 14. e5 {[%clk 0:02:09.1]} 14... Nd5 {[%clk 0:02:13.5]} 15. Nxd5
{[%clk 0:01:37.8]} 15... Bxg5 {[%clk 0:02:05.1]} 16. Bxg5 {[%clk 0:01:34.9]}
16... Nxe5 {[%clk 0:02:01]} 17. Qb3 {[%clk 0:01:26.2]} 17... Qxb3 {[%clk
0:01:57.3]} 18. axb3 {[%clk 0:01:25.1]} 18... Rxf7 {[%clk 0:01:39.2]} 19. Nc7
{[%clk 0:01:14.4]} 19... Rb8 {[%clk 0:01:35.5]} 20. Rxf7 {[%clk 0:01:09.7]}
20... Nxf7 {[%clk 0:01:35.4]} 21. Rf1 {[%clk 0:01:09.3]} 21... Kg8 {[%clk
0:01:35.5]} 22. Bf4 {[%clk 0:01:08]} 22... Rb7 {[%clk 0:01:35.6]} 23. Na6 {[%clk
0:01:06.1]} 23... Re7 {[%clk 0:01:34]} 24. Nc5 {[%clk 0:01:05.5]} 24... Bf5
{[%clk 0:01:27.3]} 25. c3 {[%clk 0:01:02.7]} 25... a5 {[%clk 0:01:13.9]} 26. h3
{[%clk 0:01:01.5]} 26... h6 {[%clk 0:01:04.3]} 27. Ra1 {[%clk 0:01:00.2]} 27...
Ra7 {[%clk 0:01:04.1]} 28. Bb8 {[%clk 0:00:58.4]} 28... Ra8 {[%clk 0:01:04.1]}
29. Bc7 {[%clk 0:00:58.3]} 29... Rc8 {[%clk 0:00:59.1]} 30. Bxa5 {[%clk
0:00:57.5]} 30... Ra8 {[%clk 0:00:59.4]} 31. b4 {[%clk 0:00:57]} 31... Ne5
{[%clk 0:00:57.9]} 32. Rf1 {[%clk 0:00:55.3]} 32... Bg6 {[%clk 0:00:54.6]} 33.
Bc7 {[%clk 0:00:54.6]} 33... Nc4 {[%clk 0:00:51.7]} 34. Ne6 {[%clk 0:00:46.8]}
34... Be4 {[%clk 0:00:47.6]} 35. Nd4 {[%clk 0:00:41.6]} 35... Ra2 {[%clk
0:00:41.4]} 36. Rf4 {[%clk 0:00:24.4]} 36... Bxg2+ {[%clk 0:00:40.8]} 37. Kg1
{[%clk 0:00:24.5]} 37... Bxh3 {[%clk 0:00:40.9]} 38. Re4 {[%clk 0:00:24.1]}
38... Bg2 {[%clk 0:00:22.5]} 39. Rg4 {[%clk 0:00:21.1]} 39... Bd5 {[%clk
0:00:17.7]} 40. Nf5 {[%clk 0:00:20.9]} 40... Ra1+ {[%clk 0:00:16.2]} 41. Kf2
{[%clk 0:00:18.1]} 41... Ra2+ {[%clk 0:00:13.3]} 42. Kg1 {[%clk 0:00:18.3]}
42... g5 {[%clk 0:00:12.3]} 43. Nxh6+ {[%clk 0:00:17.2]} 43... Kh7 {[%clk
0:00:13]} 44. Nf5 {[%clk 0:00:14.2]} 44... Kg6 {[%clk 0:00:13.7]} 45. Ne7+
{[%clk 0:00:14.3]} 45... Kh5 {[%clk 0:00:14.4]} 46. Rg3 {[%clk 0:00:14]} 46...
Be4 {[%clk 0:00:13.7]} 47. Bd8 {[%clk 0:00:12.6]} 47... g4 {[%clk 0:00:13.6]}
48. Ng8 {[%clk 0:00:11.2]} 48... Bf3 {[%clk 0:00:13.7]} 49. Nf6+ {[%clk
0:00:11.1]} 49... Kh4 {[%clk 0:00:13.3]} 50. Ne4+ {[%clk 0:00:09.7]} 50... Kh5
{[%clk 0:00:14]} 51. Nf6+ {[%clk 0:00:09.9]} 51... Kg6 {[%clk 0:00:14.5]} 52.
Nxg4 {[%clk 0:00:10]} 52... Kf5 {[%clk 0:00:14.1]} 53. Rxf3+ {[%clk 0:00:07.3]}
53... Kxg4 {[%clk 0:00:14.8]} 54. Rf6 {[%clk 0:00:07.5]} 54... Ne5 {[%clk
0:00:13.8]} 55. Bc7 {[%clk 0:00:02.5]} 55... Nf3+ {[%clk 0:00:12.5]} 56. Kf1
{[%clk 0:00:02.8]} 56... Ra6 {[%clk 0:00:06.6]} 57. Bd6 {[%clk 0:00:02.1]} 57...
Nd2+ {[%clk 0:00:06.5]} 58. Ke2 {[%clk 0:00:01.7]} 58... Ne4 {[%clk 0:00:07.2]}
59. Rg6+ {[%clk 0:00:01.1]} 59... Kf5 {[%clk 0:00:07.6]} 60. Rh6 {[%clk
0:00:01.5]} 60... Nxc3+ {[%clk 0:00:07.9]} 61. Kd3 {[%clk 0:00:01.9]} 61... Nd5
{[%clk 0:00:06.4]} 62. Bc5 {[%clk 0:00:02.2]} 62... Nf4+ {[%clk 0:00:05.7]} 63.
Kd4 {[%clk 0:00:02.5]} 63... Ne6+ {[%clk 0:00:06.3]} 64. Kc3 {[%clk 0:00:02.4]}
64... Ra3+ {[%clk 0:00:06.5]} 65. Kb2 {[%clk 0:00:02]} 65... Rf3 {[%clk
0:00:06.5]} 66. Rh5+ {[%clk 0:00:02.4]} 66... Ke4 {[%clk 0:00:07]} 67. Be7
{[%clk 0:00:02.4]} 67... Nd4 {[%clk 0:00:05.9]} 68. Rc5 {[%clk 0:00:01.9]} 68...
Rf2+ {[%clk 0:00:04.9]} 69. Kc1 {[%clk 0:00:02]} 69... Kd3 {[%clk 0:00:05.1]}
70. Bd6 {[%clk 0:00:02.1]} 70... Nb3+ {[%clk 0:00:05.7]} 71. Kb1 {[%clk
0:00:01.6]} 71... Nxc5 {[%clk 0:00:05.8]} 72. Bxc5 {[%clk 0:00:02.2]} 72... Rg2
{[%clk 0:00:06.3]} 73. Kc1 {[%clk 0:00:02]} 73... Kc3 {[%clk 0:00:05.7]} 74. Kd1
{[%clk 0:00:02.5]} 74... Rg4 {[%clk 0:00:05.9]} 75. Kc1 {[%clk 0:00:01.5]} 75...
Rxb4 {[%clk 0:00:06]} 76. Bxb4+ {[%clk 0:00:02]} 76... Kxb4 {[%clk 0:00:06.9]}
77. Kc2 {[%clk 0:00:02.6]} 77... Ka4 {[%clk 0:00:07.3]} 78. Kb2 {[%clk
0:00:03.2]} 78... c5 {[%clk 0:00:07.9]} 79. Kc3 {[%clk 0:00:03.8]} 79... Ka3
{[%clk 0:00:08.2]} 80. Kc2 {[%clk 0:00:04.1]} 80... b4 {[%clk 0:00:08.9]} 81.
Kb1 {[%clk 0:00:04.4]} 81... c4 {[%clk 0:00:09.4]} 82. Ka1 {[%clk 0:00:05]}
82... Kb3 {[%clk 0:00:09.7]} 83. Kb1 {[%clk 0:00:05.5]} 83... Kc3 {[%clk
0:00:10.5]} 84. Kc1 {[%clk 0:00:06.1]} 84... Kd3 {[%clk 0:00:10.6]} 85. Kb2
{[%clk 0:00:06.3]} 85... c3+ {[%clk 0:00:10.8]} 86. Kb3 {[%clk 0:00:06.6]} 86...
c2 {[%clk 0:00:11.3]} 0-1

[Event "Early-Titled-Tuesday-Blitz-April-16-2024"]
[Site "Chess.com"]
[Date "2024.04.16"]
[Round "2"]
[White "teresin05"]
[Black "kacperkarwowski"]
[Result "1-0"]
[WhiteElo "2324"]
[BlackElo "2510"]
[TimeControl "180+1"]
[EndTime "8:19:41 PDT"]
[Termination "teresin05 won by checkmate"]

1. e4 {[%clk 0:02:26.6]} 1... c5 {[%clk 0:02:42.6]} 2. Nf3 {[%clk 0:02:26.2]}
2... g6 {[%clk 0:02:37.2]} 3. d4 {[%clk 0:02:26.7]} 3... cxd4 {[%clk 0:02:35.2]}
4. Nxd4 {[%clk 0:02:27.6]} 4... Nc6 {[%clk 0:02:34.5]} 5. c4 {[%clk 0:02:26.1]}
5... Nf6 {[%clk 0:02:34.1]} 6. Nc3 {[%clk 0:02:25.7]} 6... d6 {[%clk 0:02:34.3]}
7. Be3 {[%clk 0:02:26.1]} 7... Ng4 {[%clk 0:02:34.2]} 8. Bc1 {[%clk 0:02:09.7]}
8... Qb6 {[%clk 0:02:32.9]} 9. Nce2 {[%clk 0:01:58.7]} 9... Bg7 {[%clk
0:02:21.6]} 10. h3 {[%clk 0:01:49.7]} 10... Nxf2 {[%clk 0:02:13.3]} 11. Kxf2
{[%clk 0:01:50.1]} 11... Nxd4 {[%clk 0:02:13.5]} 12. Be3 {[%clk 0:01:48]} 12...
e5 {[%clk 0:02:03.9]} 13. Qd2 {[%clk 0:01:41.4]} 13... O-O {[%clk 0:01:58.6]}
14. Rd1 {[%clk 0:01:37]} 14... f5 {[%clk 0:01:54.5]} 15. Nxd4 {[%clk 0:01:21.8]}
15... exd4 {[%clk 0:01:51]} 16. Bxd4 {[%clk 0:01:22.7]} 16... fxe4+ {[%clk
0:01:49.7]} 17. Kg1 {[%clk 0:01:09.9]} 17... Bxd4+ {[%clk 0:00:44]} 18. Qxd4
{[%clk 0:01:10.8]} 18... Rf6 {[%clk 0:00:19.6]} 19. Be2 {[%clk 0:01:02.2]} 19...
h5 {[%clk 0:00:10.1]} 20. Kh2 {[%clk 0:01:00.7]} 20... Qxd4 {[%clk 0:00:09.6]}
21. Rxd4 {[%clk 0:01:01.6]} 21... Bf5 {[%clk 0:00:03.1]} 22. g4 {[%clk
0:00:57.3]} 22... hxg4 {[%clk 0:00:03.6]} 23. hxg4 {[%clk 0:00:58.2]} 23... Be6
{[%clk 0:00:04.2]} 24. Rxe4 {[%clk 0:00:54.7]} 24... d5 {[%clk 0:00:04.4]} 25.
g5 {[%clk 0:00:42.5]} 25... dxe4 {[%clk 0:00:03.3]} 26. gxf6 {[%clk 0:00:43.2]}
26... Kf7 {[%clk 0:00:04]} 27. Rf1 {[%clk 0:00:40.7]} 27... Bf5 {[%clk
0:00:04.5]} 28. Kg3 {[%clk 0:00:37.5]} 28... Kxf6 {[%clk 0:00:05]} 29. Kf4
{[%clk 0:00:38.2]} 29... g5+ {[%clk 0:00:05]} 30. Ke3 {[%clk 0:00:38.9]} 30...
Rh8 {[%clk 0:00:05.6]} 31. Bg4 {[%clk 0:00:38.2]} 31... Rd8 {[%clk 0:00:02.4]}
32. Rxf5+ {[%clk 0:00:37.1]} 32... Kg6 {[%clk 0:00:03]} 33. Rd5 {[%clk
0:00:36.7]} 33... Rh8 {[%clk 0:00:03.2]} 34. Kxe4 {[%clk 0:00:31.6]} 34... Rh2
{[%clk 0:00:04.1]} 35. Rb5 {[%clk 0:00:31.1]} 35... b6 {[%clk 0:00:04.2]} 36. a4
{[%clk 0:00:21.2]} 36... Kf6 {[%clk 0:00:04.2]} 37. b3 {[%clk 0:00:18.3]} 37...
Kg6 {[%clk 0:00:04.7]} 38. a5 {[%clk 0:00:18.1]} 38... Rf2 {[%clk 0:00:05.3]}
39. Ke3 {[%clk 0:00:16.9]} 39... Rf4 {[%clk 0:00:05.4]} 40. Be2 {[%clk 0:00:17]}
40... Rh4 {[%clk 0:00:05.5]} 41. axb6 {[%clk 0:00:16.8]} 41... axb6 {[%clk
0:00:06.3]} 42. Rxb6+ {[%clk 0:00:17.7]} 42... Kf5 {[%clk 0:00:07]} 43. Rb5+
{[%clk 0:00:15.5]} 43... Kf6 {[%clk 0:00:07.3]} 44. c5 {[%clk 0:00:15.9]} 44...
Rh3+ {[%clk 0:00:07.4]} 45. Kf2 {[%clk 0:00:15.3]} 45... Rc3 {[%clk 0:00:07.3]}
46. Rb6+ {[%clk 0:00:14]} 46... Ke5 {[%clk 0:00:07.5]} 47. c6 {[%clk 0:00:14.2]}
47... Kd6 {[%clk 0:00:08]} 48. Bc4 {[%clk 0:00:10.5]} 48... Kc7 {[%clk
0:00:07.7]} 49. Ra6 {[%clk 0:00:10.3]} 49... g4 {[%clk 0:00:08]} 50. Kg2 {[%clk
0:00:10]} 50... Kd6 {[%clk 0:00:07.7]} 51. Rb6 {[%clk 0:00:05.3]} 51... Kc7
{[%clk 0:00:08.1]} 52. Ra6 {[%clk 0:00:04.6]} 52... Kd6 {[%clk 0:00:08.6]} 53.
Ra8 {[%clk 0:00:04.2]} 53... Kxc6 {[%clk 0:00:08.6]} 54. Rg8 {[%clk 0:00:04.9]}
54... Rc2+ {[%clk 0:00:07.7]} 55. Kg3 {[%clk 0:00:04.9]} 55... Kc5 {[%clk
0:00:08.5]} 56. Rxg4 {[%clk 0:00:03.7]} 56... Rc1 {[%clk 0:00:09.1]} 57. Rg5+
{[%clk 0:00:03.9]} 57... Kb4 {[%clk 0:00:09.3]} 58. Rb5+ {[%clk 0:00:04.6]}
58... Kc3 {[%clk 0:00:09.9]} 59. Kf4 {[%clk 0:00:05.1]} 59... Kd4 {[%clk
0:00:10.2]} 60. Rd5+ {[%clk 0:00:04.5]} 60... Kc3 {[%clk 0:00:10.7]} 61. Ke5
{[%clk 0:00:04.8]} 61... Re1+ {[%clk 0:00:10.5]} 62. Kd6 {[%clk 0:00:05.5]}
62... Kb4 {[%clk 0:00:11.4]} 63. Rb5+ {[%clk 0:00:05.3]} 63... Kc3 {[%clk
0:00:11.9]} 64. Kc5 {[%clk 0:00:06]} 64... Re5+ {[%clk 0:00:12.4]} 65. Kc6
{[%clk 0:00:06.6]} 65... Re8 {[%clk 0:00:13.2]} 66. Rd5 {[%clk 0:00:05.8]} 66...
Kb4 {[%clk 0:00:13.3]} 67. Rd3 {[%clk 0:00:06.2]} 67... Rc8+ {[%clk 0:00:13.2]}
68. Kd5 {[%clk 0:00:06.9]} 68... Rh8 {[%clk 0:00:14]} 69. Ke4 {[%clk 0:00:07.3]}
69... Re8+ {[%clk 0:00:14]} 70. Kd4 {[%clk 0:00:07.5]} 70... Rd8+ {[%clk
0:00:14.5]} 71. Ke3 {[%clk 0:00:08.2]} 71... Re8+ {[%clk 0:00:15.1]} 72. Kd2
{[%clk 0:00:08.7]} 72... Rh8 {[%clk 0:00:15.4]} 73. Kc2 {[%clk 0:00:09.4]} 73...
Rh2+ {[%clk 0:00:15.4]} 74. Rd2 {[%clk 0:00:09.9]} 74... Rh3 {[%clk 0:00:15.7]}
75. Kb2 {[%clk 0:00:10.4]} 75... Rh5 {[%clk 0:00:15.4]} 76. Be2 {[%clk
0:00:10.5]} 76... Re5 {[%clk 0:00:14.7]} 77. Rd4+ {[%clk 0:00:10.7]} 77... Kc5
{[%clk 0:00:15.3]} 78. Rc4+ {[%clk 0:00:10.7]} 78... Kb6 {[%clk 0:00:15.9]} 79.
Bd3 {[%clk 0:00:11.1]} 79... Rd5 {[%clk 0:00:16.1]} 80. Kc3 {[%clk 0:00:12]}
80... Rg5 {[%clk 0:00:15.9]} 81. b4 {[%clk 0:00:12.6]} 81... Rg1 {[%clk
0:00:16.1]} 82. Re4 {[%clk 0:00:12]} 82... Rc1+ {[%clk 0:00:16.1]} 83. Kd4
{[%clk 0:00:12.2]} 83... Rc6 {[%clk 0:00:14.9]} 84. Bc4 {[%clk 0:00:11.9]} 84...
Rc8 {[%clk 0:00:15.1]} 85. Re6+ {[%clk 0:00:11.6]} 85... Ka7 {[%clk 0:00:15.5]}
86. b5 {[%clk 0:00:12.1]} 86... Rd8+ {[%clk 0:00:15.5]} 87. Kc5 {[%clk 0:00:13]}
87... Rh8 {[%clk 0:00:14.9]} 88. b6+ {[%clk 0:00:12.9]} 88... Kb8 {[%clk
0:00:15.5]} 89. Bd5 {[%clk 0:00:12.8]} 89... Rc8+ {[%clk 0:00:13]} 90. Bc6
{[%clk 0:00:13.3]} 90... Rd8 {[%clk 0:00:07]} 91. Re8 {[%clk 0:00:13.6]} 91...
Kc8 {[%clk 0:00:05.6]} 92. b7+ {[%clk 0:00:12.3]} 92... Kc7 {[%clk 0:00:05.8]}
93. Rxd8 {[%clk 0:00:12.2]} 93... Kxd8 {[%clk 0:00:05.3]} 94. b8=Q+ {[%clk
0:00:12.7]} 94... Ke7 {[%clk 0:00:06.2]} 95. Qd6+ {[%clk 0:00:12.9]} 95... Kf7
{[%clk 0:00:06.4]} 96. Bd5+ {[%clk 0:00:12.6]} 96... Kg7 {[%clk 0:00:07.3]} 97.
Qe5+ {[%clk 0:00:12.5]} 97... Kf8 {[%clk 0:00:07.5]} 98. Qf6+ {[%clk 0:00:11.7]}
98... Ke8 {[%clk 0:00:07.9]} 99. Bf7+ {[%clk 0:00:09.1]} 99... Kf8 {[%clk
0:00:07.6]} 100. Be6+ {[%clk 0:00:09.2]} 100... Ke8 {[%clk 0:00:08.1]} 101. Qf7+
{[%clk 0:00:09.8]} 101... Kd8 {[%clk 0:00:09]} 102. Qd7# {[%clk 0:00:10.4]} 1-0

[Event "Early-Titled-Tuesday-Blitz-April-16-2024"]
[Site "Chess.com"]
[Date "2024.04.16"]
[Round "2"]
[White "Agibileg"]
[Black "tomesao"]
[Result "1-0"]
[WhiteElo "2760"]
[BlackElo "2540"]
[TimeControl "180+1"]
[EndTime "8:20:00 PDT"]
[Termination "Agibileg won by resignation"]

1. d4 {[%clk 0:03:00.9]} 1... Nf6 {[%clk 0:02:57.8]} 2. c4 {[%clk 0:03:01.1]}
2... e6 {[%clk 0:02:56.8]} 3. Nc3 {[%clk 0:03:01]} 3... d5 {[%clk 0:02:56.9]} 4.
cxd5 {[%clk 0:03:01]} 4... exd5 {[%clk 0:02:56.8]} 5. Bg5 {[%clk 0:03:00.8]}
5... Be7 {[%clk 0:02:54.9]} 6. e3 {[%clk 0:03:00.7]} 6... O-O {[%clk 0:02:54.8]}
7. Bd3 {[%clk 0:03:00.4]} 7... c6 {[%clk 0:02:54.3]} 8. Qc2 {[%clk 0:02:59.5]}
8... h6 {[%clk 0:02:54.1]} 9. Bh4 {[%clk 0:02:57.5]} 9... Re8 {[%clk 0:02:52.4]}
10. Nge2 {[%clk 0:02:57.8]} 10... Nbd7 {[%clk 0:02:52.1]} 11. O-O {[%clk
0:02:57.8]} 11... c5 {[%clk 0:02:51.4]} 12. f3 {[%clk 0:02:49]} 12... cxd4
{[%clk 0:02:48.7]} 13. Nxd4 {[%clk 0:02:47.8]} 13... Ne5 {[%clk 0:02:43.6]} 14.
Rae1 {[%clk 0:02:40.9]} 14... Nxd3 {[%clk 0:02:31.5]} 15. Qxd3 {[%clk
0:02:41.7]} 15... a6 {[%clk 0:02:17.2]} 16. Kh1 {[%clk 0:02:41]} 16... Qd6
{[%clk 0:02:07.2]} 17. Rd1 {[%clk 0:02:31.4]} 17... Be6 {[%clk 0:02:03.2]} 18.
Nxe6 {[%clk 0:02:29.2]} 18... Qxe6 {[%clk 0:02:03.2]} 19. Bxf6 {[%clk
0:02:27.4]} 19... Bxf6 {[%clk 0:02:03.2]} 20. Nxd5 {[%clk 0:02:27.1]} 20... Be5
{[%clk 0:01:55.9]} 21. e4 {[%clk 0:02:24.4]} 21... Rac8 {[%clk 0:01:50.5]} 22.
b3 {[%clk 0:02:19.3]} 22... Bb8 {[%clk 0:01:49.6]} 23. Rd2 {[%clk 0:02:10.2]}
23... Qe5 {[%clk 0:01:48.4]} 24. g3 {[%clk 0:02:08.8]} 24... h5 {[%clk
0:01:45.8]} 25. Re2 {[%clk 0:02:06.2]} 25... Rc5 {[%clk 0:01:32.4]} 26. f4
{[%clk 0:02:06]} 26... Rxd5 {[%clk 0:01:29.3]} 27. Qf3 {[%clk 0:01:39.7]} 27...
Qe7 {[%clk 0:01:16.7]} 28. e5 {[%clk 0:01:31.6]} 28... Qd7 {[%clk 0:01:09.8]}
29. Qxh5 {[%clk 0:01:30.2]} 29... g6 {[%clk 0:01:08.9]} 30. Qf3 {[%clk 0:01:27]}
30... Rd3 {[%clk 0:01:07.9]} 31. Qe4 {[%clk 0:01:22.6]} 31... Qd5 {[%clk
0:01:00.1]} 32. Qxd5 {[%clk 0:01:22]} 32... Rxd5 {[%clk 0:01:01]} 33. Rc2 {[%clk
0:01:21.6]} 33... Red8 {[%clk 0:00:59.5]} 34. Kg2 {[%clk 0:01:20.2]} 34... Rd2+
{[%clk 0:00:56.7]} 35. Rf2 {[%clk 0:01:20.4]} 35... Rxc2 {[%clk 0:00:50.6]} 36.
Rxc2 {[%clk 0:01:19.4]} 36... Kf8 {[%clk 0:00:50]} 37. Kf3 {[%clk 0:01:18.6]}
37... Ke7 {[%clk 0:00:50]} 38. Ke4 {[%clk 0:01:18.4]} 38... Ba7 {[%clk
0:00:47.4]} 39. h3 {[%clk 0:01:09.8]} 39... Rd4+ {[%clk 0:00:45.4]} 40. Kf3
{[%clk 0:01:10]} 40... Rd3+ {[%clk 0:00:42.5]} 41. Kg4 {[%clk 0:01:08.8]} 41...
Kd7 {[%clk 0:00:38.5]} 42. h4 {[%clk 0:01:07.9]} 42... Be3 {[%clk 0:00:37.1]}
43. Re2 {[%clk 0:01:03.5]} 43... Bc5 {[%clk 0:00:30.7]} 44. Rh2 {[%clk
0:00:48.1]} 44... b5 {[%clk 0:00:28]} 45. Rg2 {[%clk 0:00:38.2]} 45... b4 {[%clk
0:00:27.1]} 46. h5 {[%clk 0:00:38]} 46... gxh5+ {[%clk 0:00:27]} 47. Kxh5 {[%clk
0:00:38.9]} 47... Be3 {[%clk 0:00:26.1]} 48. Re2 {[%clk 0:00:36]} 48... Bd4
{[%clk 0:00:25.1]} 49. g4 {[%clk 0:00:34.6]} 49... Bc3 {[%clk 0:00:23.5]} 50.
Kg5 {[%clk 0:00:32.1]} 50... Rd2 {[%clk 0:00:22.8]} 51. Re4 {[%clk 0:00:29.5]}
51... Ke7 {[%clk 0:00:18.5]} 52. Rc4 {[%clk 0:00:25.9]} 52... Rxa2 {[%clk
0:00:16.7]} 53. Rc7+ {[%clk 0:00:25.4]} 53... Ke8 {[%clk 0:00:16.9]} 54. Kf6
{[%clk 0:00:24]} 54... Rf2 {[%clk 0:00:16.5]} 55. f5 {[%clk 0:00:22]} 55... Re2
{[%clk 0:00:15.3]} 56. Re7+ {[%clk 0:00:18.5]} 56... Kd8 {[%clk 0:00:15.5]} 57.
Kxf7 {[%clk 0:00:17.1]} 57... Rxe5 {[%clk 0:00:15.2]} 58. Ra7 {[%clk 0:00:11.1]}
58... Rd5 {[%clk 0:00:15.4]} 59. Rxa6 {[%clk 0:00:08.2]} 59... Rd7+ {[%clk
0:00:15.6]} 60. Ke6 {[%clk 0:00:06.4]} 60... Rg7 {[%clk 0:00:15.7]} 61. Kd5
{[%clk 0:00:06.7]} 61... Rxg4 {[%clk 0:00:15.4]} 62. f6 {[%clk 0:00:03.8]} 62...
Ke8 {[%clk 0:00:15.3]} 63. Ke6 {[%clk 0:00:02.8]} 63... Re4+ {[%clk 0:00:15.2]}
64. Kf5 {[%clk 0:00:03.2]} 64... Re1 {[%clk 0:00:15.1]} 65. Ra8+ {[%clk
0:00:02]} 65... Kd7 {[%clk 0:00:15.2]} 66. f7 {[%clk 0:00:02]} 66... Rf1+ {[%clk
0:00:15.3]} 67. Kg6 {[%clk 0:00:02.2]} 67... Rg1+ {[%clk 0:00:15.4]} 68. Kh5
{[%clk 0:00:02]} 68... Rh1+ {[%clk 0:00:15.6]} 69. Kg4 {[%clk 0:00:01.3]} 69...
Rg1+ {[%clk 0:00:15.5]} 70. Kh3 {[%clk 0:00:01.5]} 70... Bg7 {[%clk 0:00:12.8]}
71. Rg8 {[%clk 0:00:01.8]} 71... Ke7 {[%clk 0:00:10.5]} 72. f8=Q+ {[%clk
0:00:02]} 72... Bxf8 {[%clk 0:00:10.7]} 73. Rxg1 {[%clk 0:00:02.7]} 73... Ke6
{[%clk 0:00:11]} 74. Rg4 {[%clk 0:00:03.6]} 74... Kd5 {[%clk 0:00:10.8]} 75. Rc4
{[%clk 0:00:04.1]} 75... Bc5 {[%clk 0:00:10.2]} 76. Kg4 {[%clk 0:00:04.9]} 76...
Kc6 {[%clk 0:00:10.1]} 77. Kf3 {[%clk 0:00:05.7]} 77... Kb5 {[%clk 0:00:10.5]}
78. Ke4 {[%clk 0:00:06.6]} 78... Bd6 {[%clk 0:00:11]} 79. Kd5 {[%clk 0:00:07.5]}
79... Bf8 {[%clk 0:00:11.3]} 80. Rc8 {[%clk 0:00:07.9]} 80... Bg7 {[%clk
0:00:10.6]} 81. Rb8+ {[%clk 0:00:08.4]} 81... Ka5 {[%clk 0:00:10.9]} 82. Kc4
{[%clk 0:00:09.3]} 82... Bc3 {[%clk 0:00:10.5]} 83. Ra8+ {[%clk 0:00:08.6]}
83... Kb6 {[%clk 0:00:10.8]} 84. Ra4 {[%clk 0:00:08.3]} 84... Kc6 {[%clk
0:00:09.9]} 85. Ra6+ {[%clk 0:00:08.2]} 85... Kb7 {[%clk 0:00:09.9]} 86. Re6
{[%clk 0:00:08.4]} 86... Kc7 {[%clk 0:00:10.2]} 87. Kb5 {[%clk 0:00:08.4]} 87...
Kb7 {[%clk 0:00:09.3]} 88. Re7+ {[%clk 0:00:07.8]} 88... Kc8 {[%clk 0:00:09.6]}
89. Kc6 {[%clk 0:00:07.7]} 89... Kd8 {[%clk 0:00:08.7]} 90. Re4 {[%clk
0:00:07.6]} 1-0